Cogmind - Beta 14 @@@ ROGUE MODE // 2024.09.02 @ 08:33:14 Player: Bardic Entropy Result: Self-destructed Performance ------------- Evolutions (2) 1000 Regions Visited (4) 800 Robots Destroyed (23) 115 Value Destroyed (665) 665 Prototype IDs (2) 40 Alien Tech Used (0) 0 Bonus (60) 60 TOTAL SCORE: 2680 Bonus ------- Follower Combat Kills 60 Cogmind --------- Core Integrity 338/550 Matter 270/300 Energy 148/160 System Corruption 3% Temperature Danger (446) Movement Treading (160) Location -8/Materials Parts ------- > --- POWER (1) -------- Light Nuclear Core > --- PROPULSION (3) --- Light Treads Light Treads Light Treads > --- UTILITY (3) ------ Large Storage Unit Seismic Detector Hacking Suite > --- WEAPON (4) ------- Shock Rifle Ion Cannon Heavy Assault Rifle Flak Cannon > --- INVENTORY (15) --- Light Nuclear Core Light Treads Medium Matter Pod (100) Targeting Computer Particle Gun Assault Rifle Assault Rifle Assault Rifle Grenade Launcher Peak State ------------ > --- POWER ------------ Light Nuclear Core > --- PROPULSION ------- Light Treads Light Treads Light Treads > --- UTILITY ---------- Large Storage Unit Seismic Detector Hacking Suite > --- WEAPON ----------- Shock Rifle Ion Cannon Heavy Assault Rifle Flak Cannon > --- INVENTORY -------- Light Nuclear Core Light Treads Medium Matter Pod Targeting Computer Particle Gun Assault Rifle Assault Rifle Assault Rifle Grenade Launcher [Rating: 23] Favorites ----------- Power Improved Ion Engine Engine Improved Ion Engine Power Core Light Nuclear Core Propulsion Light Treads Treads Light Treads Wheel Wheel Utility Seismic Detector Device Seismic Detector Storage Small Storage Unit Hackware Hacking Suite Weapon Assault Rifle Energy Gun Beam Rifle Energy Cannon Ion Cannon Ballistic Gun Assault Rifle Ballistic Cannon Flak Cannon Launcher Grenade Launcher Build | -11 -10 -10 -10 -8 ------- Run | Yrd Mat Min Sub Mat Slots Evolved 4 | . . . . 4 Power . | . . . . . Propulsion 1 | . . . . 1 Utility 1 | . . . . 1 Weapon 2 | . . . . 2 Parts Attached 28 | 9 . 3 1 15 Power 5 | 2 . 1 . 2 Engine 3 | 2 . 1 . . Core 2 | . . . . 2 Reactor . | . . . . . Propulsion 5 | 2 . . . 3 Treads 4 | 1 . . . 3 Leg . | . . . . . Wheel 1 | 1 . . . . Hover . | . . . . . Flight . | . . . . . Utility 5 | 2 . . . 3 Device 2 | 1 . . . 1 Storage 2 | 1 . . . 1 Processor . | . . . . . Hackware 1 | . . . . 1 Protection . | . . . . . Artifact . | . . . . . Weapon 13 | 3 . 2 1 7 Energy Gun 5 | 1 . 1 . 3 Energy Cannon 1 | . . . . 1 Ballistic Gun 5 | 2 . . 1 2 Ballistic Cannon 1 | . . . . 1 Launcher 1 | . . 1 . . Special Weapon . | . . . . . Impact Weapon . | . . . . . Slashing Weapon . | . . . . . Piercing Weapon . | . . . . . Special Melee Weapon . | . . . . . Unidentified Prototypes . | . . . . . Parts Lost . | . . . . . Power . | . . . . . Propulsion . | . . . . . Utility . | . . . . . Weapon . | . . . . . Highest Loss Streak . | . . . . . To Critical Strikes . | . . . . . Average Slot Usage (%) 97 | . 100 100 100 94 Engine 9 | . 14 14 14 1 Core 2 | . . . . 7 Treads 17 | . 14 14 14 24 Wheel 9 | . 14 14 14 1 Device 12 | . 14 14 14 9 Storage 12 | . 14 14 14 10 Hackware 2 | . . . . 6 Energy Gun 14 | . 14 14 14 15 Ballistic Gun 13 | . 14 13 14 11 Ballistic Cannon 1 | . . . . 5 Peak Build Rating 23 | 7 7 10 9 23 Average Rating 12 | 5 7 9 9 18 On Entrance 6 | . 7 7 9 9 Naked Turns . | . . . . . Heaviest Build 44 | 14 14 19 18 44 Greatest Support 60 | 20 10 10 10 60 Greatest Overweight (x) 3 | 1 1 1 1 3 Average Overweight (x) . | . 1 1 1 . Largest Inventory Capacity 15 | 8 8 8 8 15 Average Capacity 10 | 7 8 8 8 14 Most Carried 9 | 4 6 8 8 9 Average Carried 7 | 2 4 7 8 7 Final Capacity 15 | 8 8 8 8 15 Final Carried 9 | 4 6 8 8 9 Class Distribution -------------------- 67% | Mutant 32% | Scavenger-Gunner Dominant Class ---------------- Mutant | -10/Materials Mutant | -10/Mines Mutant | -10/Subcaves Scavenger-Gunner | -8/Materials Resources | -11 -10 -10 -10 -8 ----------- Run | Yrd Mat Min Sub Mat Matter Collected 847 | 263 . 163 40 381 Remotely . | . . . . . Salvage Created 900 | 22 . 281 . 597 Parts 62 | 8 . 25 . 29 Haulers Intercepted . | . . . . . Recyclers Shooed 1 | . . . . 1 Parts Field Recycled . | . . . . . Retrieved Matter . | . . . . . Parts Self-Destructed 7 | . . . 7 . Prevented . | . . . . . Kills | -11 -10 -10 -10 -8 ------- Run | Yrd Mat Min Sub Mat Combat Hostiles Destroyed 12 | . . 4 . 8 Guns 10 | . . 4 . 6 Cannons 1 | . . . . 1 Classes Destroyed 9 | 1 . 3 . 5 Worker 1 | . . 1 . . Tunneler 6 | 2 . 3 . 1 Recycler 1 | . . . . 1 Mechanic 1 | . . . . 1 Operator 1 | . . . . 1 Watcher 1 | . . . . 1 Grunt 7 | . . 2 . 5 Sentry 4 | . . 2 . 2 Hunter 1 | . . . . 1 Best Kill Streak 5 | 2 . 2 . 5 Combat Bots Only 3 | . . 2 . 3 Max Kills in Single Turn 2 | 1 . 2 . 1 Gunslinging . | . . . . . Exploded . | . . . . . Melee . | . . . . . Uniques/NPCs Destroyed . | . . . . . Combat | -11 -10 -10 -10 -8 -------- Run | Yrd Mat Min Sub Mat Hostile Shots Fired 59 | . . 19 . 40 Missed 11 | . . 5 . 6 Damage Taken 927 | . . 225 . 702 Core 304 | . . 92 . 212 Absorbed by Shields . | . . . . . Core Remaining (%) 81 | 100 . . 63 . Volleys Fired 50 | 2 2 16 4 26 Largest 4 | 2 2 2 2 4 Hottest 177 | 60 60 76 76 177 Shots Fired 127 | 4 4 30 8 81 Gun 105 | 4 4 28 8 61 Cannon 20 | . . . . 20 Launcher 2 | . . 2 . . Special . | . . . . . Kinetic 55 | 2 2 14 4 33 Thermal 54 | 2 2 14 4 32 Explosive 2 | . . 2 . . Electromagnetic 16 | . . . . 16 Robot Hit Streak 20 | 3 4 18 20 9 Robot Miss Streak 3 | . 3 1 1 3 Penetration Max . | . . . . . Secondary Targets . | . . . . . Shots Hit Robots 78 | 3 1 23 3 48 Core Hits 40 | 2 . 13 . 25 Critical Kills 1 | . . . . 1 Critical Parts Destroyed . | . . . . . Critical Strikes 5 | . . . . 5 Burn 4 | . . . . 4 Meltdown 1 | . . . . 1 Melee Attacks . | . . . . . Impact . | . . . . . Slashing . | . . . . . Piercing . | . . . . . Sneak Attacks . | . . . . . Combat Hostiles . | . . . . . Follow-up Attacks . | . . . . . Damage Inflicted 1177 | 33 11 327 . 806 Guns 955 | 33 11 288 . 623 Cannons 183 | . . . . 183 Explosions 39 | . . 39 . . Melee . | . . . . . Ramming . | . . . . . Kinetic 390 | 12 . 160 . 218 Thermal 522 | 21 11 128 . 362 Explosive 39 | . . 39 . . Electromagnetic 226 | . . . . 226 Impact . | . . . . . Slashing . | . . . . . Piercing . | . . . . . Highest Corruption 3 | . . . . 3 Average Corruption 2 | . . . . 2 Corruption Purged . | . . . . . Corruption Blocked . | . . . . . Effects 3 | . . . . 3 Matter Fused 2 | . . . . 2 Heat Flow Errors 1 | . . . . 1 Overload Shots . | . . . . . Overflow Damage . | . . . . . Projectiles . | . . . . . Explosions . | . . . . . Melee . | . . . . . Knockbacks 1 | . . . . 1 Impact . | . . . . . Kinetic 1 | . . . . 1 Secondary . | . . . . . Self-Inflicted Damage 13 | . . 13 . . Shots 1 | . . 1 . . Rammed . | . . . . . Targets Rammed . | . . . . . Kicked . | . . . . . Crushed . | . . . . . Highest Temperature 730 | . 20 45 . 730 Average Temperature 230 | . 20 20 . 278 Received Heat Transfer 360 | . . 90 . 270 Effects 25 | . . . . 25 Shutdowns 5 | . . . . 5 Energy Bleed 3 | . . . . 3 Interference 4 | . . . . 4 Matter Decay 5 | . . . . 5 Short Circuit 1 | . . . . 1 Damage (minor) 1 | . . . . 1 Damage (major) 4 | . . . . 4 Damage (core) 2 | . . . . 2 Siege Activations . | . . . . . Robots Corrupted . | . . . . . Combat Hostiles . | . . . . . Parts Fried . | . . . . . Impact Corruptions . | . . . . . Robots Melted 1 | . . . . 1 Combat Hostiles 1 | . . . . 1 Parts Melted 11 | . . 1 . 10 Heat Transferred 1447 | 50 25 299 . 1073 Parts Sabotaged . | . . . . . Parts Stolen . | . . . . . Parts Stripped . | . . . . . Power Chain Reactions . | . . . . . Alert | -11 -10 -10 -10 -8 ------- Run | Yrd Mat Min Sub Mat Peak Influence 167 | 10 21 117 . 167 Initial 7 | . 6 7 . . Average 56 | 3 17 54 . 69 Maximum Alert Level . | . . . . . Low Security (%) 100 | 100 100 100 . 100 Level 1 . | . . . . . Level 2 . | . . . . . Level 3 . | . . . . . Level 4 . | . . . . . Level 5 . | . . . . . High Security . | . . . . . Max Security . | . . . . . Squads Dispatched 2 | . . . . 2 Investigation 1 | . . . . 1 Extermination . | . . . . . Reinforcement 1 | . . . . 1 Assault . | . . . . . Garrison . | . . . . . Intercept . | . . . . . Searches Triggered . | . . . . . Construction Impeded . | . . . . . Haulers Reinforced . | . . . . . Active Scanning Responses . | . . . . . Cargo Convoy Interrupts . | . . . . . Stealth | -11 -10 -10 -10 -8 --------- Run | Yrd Mat Min Sub Mat Distress Signals 2 | . . . . 2 Communications Jammed . | . . . . . Distress Signals . | . . . . . Times Spotted 20 | . 1 4 2 13 Peak Tracking Total 6 | . 1 2 2 6 Tactical Retreats 2 | . . . . 2 Traps | -11 -10 -10 -10 -8 ------- Run | Yrd Mat Min Sub Mat Traps Triggered 1 | . . . . 1 Indirectly . | . . . . . Trap Hack Attempts . | . . . . . Triggered . | . . . . . Disarmed . | . . . . . Reprogrammed . | . . . . . Reused . | . . . . . Traps Extracted . | . . . . . Installed . | . . . . . Triggered . | . . . . . Machines | -11 -10 -10 -10 -8 ---------- Run | Yrd Mat Min Sub Mat Machines Disabled . | . . . . . Max in Single Turn . | . . . . . Machines Repaired . | . . . . . Machines Dismantled . | . . . . . Machines Sabotaged . | . . . . . Overloaded Fab Kills . | . . . . . Hacking | -11 -10 -10 -10 -8 --------- Run | Yrd Mat Min Sub Mat Machines Accessed 4 | . . . . 4 Terminals 4 | . . . . 4 Fabricators . | . . . . . Repair Stations . | . . . . . Recycling Units . | . . . . . Scanalyzers . | . . . . . Garrison Access . | . . . . . Total Hacks 15 | . . . . 15 Successful 11 | . . . . 11 Failed 4 | . . . . 4 Catastrophic . | . . . . . Database Lockouts . | . . . . . Manual 12 | . . . . 12 Terminals 15 | . . . . 15 Fabricators . | . . . . . Repair Stations . | . . . . . Recycling Units . | . . . . . Scanalyzers . | . . . . . Garrison Access . | . . . . . Terminal Hacks 3 | . . . . 3 Prototype ID Bank 1 | . . . . 1 Terminal Index 1 | . . . . 1 Hauler Manifests 1 | . . . . 1 Fabricator Hacks . | . . . . . Repair Station Hacks . | . . . . . Recycling Unit Hacks . | . . . . . Scanalyzer . | . . . . . Garrison Access Hacks . | . . . . . Unauthorized Hacks 8 | . . . . 8 Terminals 8 | . . . . 8 Botnet 4 | . . . . 4 Operators 1 | . . . . 1 Skim 3 | . . . . 3 Fabricators . | . . . . . Repair Stations . | . . . . . Recycling Units . | . . . . . Scanalyzers . | . . . . . Garrison Access . | . . . . . Data Cores Recovered . | . . . . . Used . | . . . . . Hacking Detections 4 | . . . . 4 Full Trace Events 2 | . . . . 2 Feedback Events 1 | . . . . 1 Corruption 1 | . . . . 1 Feedback Blocked . | . . . . . Robot Schematics Acquired . | . . . . . Robots Built . | . . . . . Authchips . | . . . . . Time . | . . . . . Total Robot Build Rating . | . . . . . Part Schematics Acquired . | . . . . . Parts Built . | . . . . . Authchips . | . . . . . Time . | . . . . . Total Part Build Rating . | . . . . . Parts Repaired . | . . . . . Time . | . . . . . Parts Recycled . | . . . . . Recycled Matter . | . . . . . Retrieved Matter . | . . . . . Retrieved Components . | . . . . . Parts Scanalyzed . | . . . . . Part Schematics Acquired . | . . . . . Parts Damaged . | . . . . . Bothacking | -11 -10 -10 -10 -8 ------------ Run | Yrd Mat Min Sub Mat Used RIF Installer . | . . . . . Robots Hacked . | . . . . . Non-combat . | . . . . . Combat . | . . . . . Robot Hacks Applied . | . . . . . Relay Couplers Released . | . . . . . Fabnet Peak Effective % . | . . . . . Robots Rewired . | . . . . . Allies Hacked . | . . . . . Hacks Repelled . | . . . . . Allies | -11 -10 -10 -10 -8 -------- Run | Yrd Mat Min Sub Mat Total Allies 4 | . . 4 . . Largest Group 4 | . . 4 4 2 Highest-Rated Group 71 | . . 71 71 32 Highest-Rated Ally 31 | . . 31 31 16 Total Orders . | . . . . . Ally Attacks 16 | . . . 10 6 Total Damage 165 | . . . 103 62 Kills 2 | . . . 2 . Allies Corrupted . | . . . . . Allies Melted . | . . . . . Intel | -11 -10 -10 -10 -8 ------- Run | Yrd Mat Min Sub Mat Robot Analysis Total . | . . . . . Derelict Logs Recovered 2 | . . 2 . . Drone Launches . | . . . . . Drone Recoveries . | . . . . . Exploration | -11 -10 -10 -10 -8 ------------- Run | Yrd Mat Min Sub Mat Turns Passed 1474 | 68 50 660 157 539 Spaces Moved 1121 | 48 45 593 151 284 Core 3 | 3 . . . . Treads 220 | 5 . . . 215 Legs . | . . . . . Wheels 898 | 40 45 593 151 69 Hover . | . . . . . Flight . | . . . . . Fastest Speed 50 | 50 95 95 95 95 Average Speed 107 | 98 95 95 95 145 Slowest Speed 160 | 160 95 95 95 160 Overloaded Moves . | . . . . . Propulsion Burnouts . | . . . . . Robots Hopped . | . . . . . Cave-ins Triggered . | . . . . . Exploration Rate (%) 31 | 4 16 99 8 28 Regions Visited 4 Branch Regions 2 Pre-discovered Areas . | . . . . . Known Exits Taken . | . . . . . Unknown Exits Taken 4 | 1 1 1 1 . Scrap Searched 1 | . . 1 . . Spaces Dug . | . . . . . Terrain Destroyed 11 | . . 9 . 2 Melee . | . . . . . Projectile 2 | . . . . 2 AOE 9 | . . 9 . . Terrain Rammed . | . . . . . Walls Destroyed . | . . . . . Machines Disabled . | . . . . . Actions | -11 -10 -10 -10 -8 --------- Run | Yrd Mat Min Sub Mat Total 1275 | 60 48 663 155 349 Wait 52 | . . 38 . 14 Move 1117 | 47 44 592 150 284 Hop . | . . . . . Pick Up 15 | 2 2 7 . 4 Fast Attach 10 | 7 . . . 3 Attach 4 | . . . . 4 Detach . | . . . . . Swap 14 | 2 . 3 1 8 Drop 13 | . . 7 . 6 Fire 50 | 2 2 16 4 26 Melee . | . . . . . Ram . | . . . . . Kick . | . . . . . Crush . | . . . . . Escape Stasis . | . . . . . Rewire . | . . . . . Trap . | . . . . . Miscellaneous . | . . . . . Route ------- -11/Scrapyard -10/Materials -10/Mines (discovered 3 exits: *Mat x2 / [*Sub]) -10/Subcaves -8/Materials History --------- Turn | Location | Event 18 | -11/Scrapyard | Discovered new exit (range 16) 69 | -11/Scrapyard | Entered Materials 97 | -10/Materials | Discovered new exit (range 14) 119 | -10/Materials | Entered Mines 270 | -10/Mines | Learned Materials stockpile data 314 | -10/Mines | Build established: Mutant 348 | -10/Mines | A weapon hastily lodged in a ceiling crevice suddenly fell to the ground 357 | -10/Mines | Identified exit to Materials 532 | -10/Mines | Received a Mining Laser from a helpful Derelict 566 | -10/Mines | Discovered exit to Materials (range 9) 602 | -10/Mines | Assisted by bots powering up and referring to "LRC-V3" 666 | -10/Mines | YI-UF0 nonchalantly dropped a Grenade Launcher on the ground 771 | -10/Mines | Discovered new exit (range 8) 779 | -10/Mines | Entered Subcaves 779 | -10/Subcaves | Accompanied by 4 allies 782 | -10/Subcaves | Ambushed by Subdwellers from Twisted Machinery 833 | -10/Subcaves | Discovered new exit (range 13) 868 | -10/Subcaves | A swath of the cavern ceiling suddenly collapsed 936 | -10/Subcaves | Entered Materials 936 | -8/Materials | Accompanied by 2 allies 936 | -8/Materials | Evolved 4 slots: Propulsion x1, Utility x1, Weapon x2 1293 | -8/Materials | Build established: Scavenger-Gunner 1475 | -8/Materials | Self-destructed Last Messages --------------- 01429_ K-01 Serf collects debris. 01431_ Overheating: Matter decay (-18). 01432_ Overheating: Matter decay (-22). 01432_ K-01 Serf collects debris. 01433_ Power failure, Lgt. Nuclear Core shutdown. 01433_ Overheating: Core damaged (-60). 01433_ U-05 Engineer builds a Wall. 01433_ Acquired 140 matter. 01433_ K-01 Serf collects debris. 01434_ W-25 Informer sends out distress signal. 01435_ Acquired 54 matter. 01436_ K-01 Serf collects debris. 01448_ System corrupted: Heat flow error (+118). 01457_ Critical hit (Burn: +37). 01460_ G-47 Trooper destroyed. 01469_ Overheating: System interference. 01469_ Ion Cannon temporarily disabled. 01469_ Seismic Detector temporarily disabled. 01474_ Power failure, Lgt. Nuclear Core shutdown. 01474_ Overheating: Lgt. Treads damaged (-28). Map ----- +----------------------------------------------------+ | ??????????????????????????########???# | | ??????????????????????????#/ #???# | | ??????????????????????????# !!!#???# "" | | ???????????????????????!??# !! #???# "" | | ??????????????????????????# !! #???#! "" | | ??????????????????????????# #######+## | | ??????????????????????????# / | | ??????????????????????????####+### | | ???????????????#####+###+??# | | ?????????????? ### | | ?????????????? | | ?????????????? ^ [ | | ?????????????????## !! ^ | | ??????????????????# ! | | ??????!???????????# | | ????????????????? # ^ ^ ######## # | | ????????????????? + ""#????# # | | ????????????????? # T"#????# # | | ?????????????????## ^ """"" ""#????# | | ?????????????????# """"" ###????# | | ?????????????##### """"" #?????# | | ?????????????? = * #?????? ? | | ?????????????????# / !%! #??????????? | | ?????????????????# ! #?????????? | | ???????????????#####+####### ####+## | | ???????????????# @%[ =#### | | ???????????????# =*% [Y g= | | ???????????????# u #*!= | | ???????????????# #=! | | ???????????????# # ############# # | | ???????????????# # #?????????????? ? | | ???????????????# ; #???????????????? | | ???????????????# # #???????????????? | | ???????????????########## #???????????????? | | ????????????????????????# #???????????????? | | ????????????????????????# #???????????????? | | ????????????????????????# #???????????????? | | ????????????????????????# #???????????????? | | ????????????????????????# #???????????????? | | ????????????????????????? ????????????????? | | ????????????????????????? ????????????????? | | ????????????????????????? ????????????????? | | ????????????????????????? ????????????????? | | ????????????????????????? ????????????????? | | ????????????????????????? ????????????????? | | ????????????????????????? ????????????????? | | ??????????????????????????????????????????? | | ??????????????????????????????????????????? | | ??????????????????????????????????????????? | | ??????????????????????????????????????????? | +----------------------------------------------------+ Best States ------------- Heat Dissipation 31 Energy Generation 14 Energy Capacity 265 Matter Stores 300 Matter Capacity 300 Sight Range 16 Terrain Scan Density 10 Evasion (%) 44 Recoil Reduction 3 Offensive Hacking 10 Item Schematics ----------------- None Robot Schematics ------------------ None Fabricated ------------ Nothing Alien Tech Used ----------------- None Achievements -------------- None Challenges ------------ None Game ------ Seed HeavyEtherialPower Manual? 0 Play Time 00:21:40 Cumulative 35.7 hours Start 2024.09.02 @ 08:12:20 End 2024.09.02 @ 08:33:14 Sessions 1 Manual Loads 0 Difficulty Rogue Special Mode None Game No. 34 Rogue 34 Adventurer 0 Explorer 0 Win Type - Total 0 Types 0/0/0/0/0/0/0/0/0 Lore% 13 Gallery% 20 Achievement% 21 Wizard Run 0 Options --------- Layout 0 ASCII 0 Keyboard 0 Movement Mouse Keybinds 0 Fullscreen 1 Font 16/TerminusTall Map View 75x55 Zoom Use 0% Tactical HUD 1 Map Filters NONE Filters NONE Steam 1 RUN: b9bba16f-640d-4788-97ae-bae763b4ca6f